[Event "26th Zadar Open 2019"]
[Site "Zadar"]
[Date "2019.12.22"]
[Round "9.23"]
[White "Khalakhan, Jurij"]
[Black "de Francesco, Klaus"]
[Result "1-0"]
[ECO "A07"]
[WhiteElo "2240"]
[BlackElo "2273"]
[Annotator "NA"]
[PlyCount "119"]
[EventDate "2019.12.15"]
[EventType "swiss"]
[EventCountry "CRO"]
[SourceTitle "playchess.com"]
[Source "ChessBase"]
[SourceQuality "1"]
[TimeControl "40/5400+30:1800+30"]

1. Nf3 {[%emt 0:14:30]} d5 {[%emt 0:00:30]} 2. g3 {[%emt 0:01:30]} Nf6 {[%emt 0:00:30]} 3. Bg2 {[%emt 0:00:30]} c6 {[%emt 0:00:30]} 4. O-O {[%emt 0:01:30]} Bf5 {[%emt 0:00:00]} 5. Re1 {[%emt 0:05:30]} h6 {[%emt 0:00:00]} 6. d3 {[%emt 0:00:30]} e6 {[%emt 0:00:30]} 7. Nbd2 {[%emt 0:00:00]} Bh7 {[%emt 0:00:30]} 8. b3 {[%emt 0:03:00]} Be7 {[%emt 0:00:30]} 9. Bb2 {[%emt 0:00:00]} O-O {[%emt 0:00:30]} 10. e4 {[%emt 0:01:00]} a5 {[%emt 0:00:00]} 11. a3 {[%emt 0:01:30]} Qb6 {[%emt 0:01:00]} 12. Qe2 {[%emt 0:00:30]} Na6 {[%emt 0:00:30]} 13. Ne5 {[%emt 0:06:30]} Rad8 {[%emt 0:01:30]} 14. Ng4 {[%emt 0:02:30]} d4 {[%emt 0:01:30]} 15. f4 {[%emt 0:03:30]} c5 {[%emt 0:02:30]} 16. Rf1 {[%emt 0:02:30]} Qc7 {[%emt 0:01:30]} 17. Rae1 {[%emt 0:02:30]} b5 {[%emt 0:02:30]} 18. Bc1 {[%emt 0:00:30]} a4 {[%emt 0:02:30]} 19. bxa4 {[%emt 0:00:30]} c4 {[%emt 0:00:00]} 20. Nxf6+ {[%emt 0:00:30]} Bxf6 {[%emt 0:00:00]} 21. axb5 {[%emt 0:00:30]} cxd3 {[%emt 0:00:30]} 22. cxd3 {[%emt 0:00:30]} Nc5 {[%emt 0:00:30]} 23. Nc4 {[%emt 0:00:30]} Na4 {[%emt 0:00:30]} 24. Qc2 {[%emt 0:01:30]} Nb6 {[%emt 0:00:00]} 25. Bb2 {[%emt 0:02:30]} Rc8 {[%emt 0:03:00]} 26. Rc1 {[%emt 0:00:30]} Qa7 {[%emt 0:00:30]} 27. Qb3 {[%emt 0:00:30]} Na4 {[%emt 0:05:30]} 28. h3 {[%emt 0:05:30]} Nc3 {[%emt 0:00:30]} 29. Kh2 {[%emt 0:00:30]} Rfd8 {[%emt 0:01:30]} 30. Ra1 {[%emt 0:02:30]} Na4 {[%emt 0:00:30]} 31. Rfb1 {[%emt 0:06:30]} Nc5 {[%emt 0:01:30]} 32. Qc2 {[%emt 0:02:30]} Nxe4 {[%emt 0:00:30]} 33. dxe4 {[%emt 0:00:30]} d3 {[%emt 0:00:30]} 34. Qb3 {[%emt 0:06:30]} Qf2 {[%emt 0:03:30]} 35. Rf1 {[%emt 0:02:30]} Qc2 {[%emt 0:00:00]} 36. Qxc2 {[%emt 0:00:30]} dxc2 {[%emt 0:00:00]} 37. Bxf6 {[%emt 0:02:30]} gxf6 {[%emt 0:00:30]} 38. Ne3 {[%emt 0:09:38]} Rd3 {[%emt 0:00:30]} 39. Ng4 {[%emt 0:03:30]} Kg7 {[%emt 0:01:30]} 40. a4 {[%emt 0:00:48]} Rcc3 {[%emt 0:02:30]} 41. Rac1 {[%emt 0:34:05]} h5 {[%emt 0:31:30]} 42. Nf2 {[%emt 0:01:23]} Rd2 {[%emt 0:01:30]} 43. Nh1 {[%emt 0:02:44]} Bxe4 {[%emt 0:01:30]} 44. Rf2 {[%emt 0:00:07]} Rd1 {[%emt 0:00:00]} 45. Rcxc2 {[%emt 0:00:00]} Bxc2 {[%emt 0:00:00]} 46. a5 {[%emt 0:00:00]} Ra1 {[%emt 0:00:00]} 47. a6 {[%emt 0:00:00]} Bd3 {[%emt 0:00:00]} 48. Rb2 {[%emt 0:00:00]} Rc2 {[%emt 0:00:00]} 49. Rxc2 {[%emt 0:00:00]} Bxc2 {[%emt 0:00:00]} 50. Nf2 {[%emt 0:00:00]} f5 {[%emt 0:00:00]} 51. Bb7 {[%emt 0:00:00]} Ra2 {[%emt 0:00:00]} 52. Kg1 {[%emt 0:00:00]} Ra1+ {[%emt 0:00:00]} 53. Kg2 {[%emt 0:00:00]} Ra2 {[%emt 0:00:00]} 54. b6 {[%emt 0:00:00]} Be4+ {[%emt 0:00:00]} 55. Bxe4 {[%emt 0:00:00]} Rxa6 {[%emt 0:00:00]} 56. b7 {[%emt 0:00:00]} Rb6 {[%emt 0:00:00]} 57. Bf3 {[%emt 0:00:00]} f6 {[%emt 0:00:00]} 58. Nd3 {[%emt 0:00:00]} e5 {[%emt 0:00:00]} 59. fxe5 {[%emt 0:00:00]} fxe5 {[%emt 0:00:00]} 60. Nxe5 {[%emt 0:00:00]} 1-0

[Event "26th Zadar Open 2019"]
[Site "Zadar"]
[Date "2019.12.22"]
[Round "9.24"]
[White "Gelbenegger, Patrick"]
[Black "Hrescak, Ivana"]
[Result "1-0"]
[ECO "B92"]
[WhiteElo "2267"]
[BlackElo "2194"]
[Annotator "NA"]
[PlyCount "75"]
[EventDate "2019.12.15"]
[EventType "swiss"]
[EventCountry "CRO"]
[SourceTitle "playchess.com"]
[Source "ChessBase"]
[SourceQuality "1"]
[TimeControl "40/5400+30:1800+30"]

1. e4 {[%emt 0:15:30]} c5 {[%emt 0:00:30]} 2. Nf3 {[%emt 0:00:00]} d6 {[%emt 0:00:00]} 3. d4 {[%emt 0:00:00]} cxd4 {[%emt 0:00:00]} 4. Nxd4 {[%emt 0:00:30]} Nf6 {[%emt 0:00:00]} 5. Nc3 {[%emt 0:00:30]} a6 {[%emt 0:00:00]} 6. Be2 {[%emt 0:00:30]} e5 {[%emt 0:00:30]} 7. Nb3 {[%emt 0:00:30]} Be7 {[%emt 0:00:00]} 8. O-O {[%emt 0:05:30]} Be6 {[%emt 0:00:00]} 9. f4 {[%emt 0:00:30]} exf4 {[%emt 0:01:30]} 10. Bxf4 {[%emt 0:01:30]} Nc6 {[%emt 0:00:30]} 11. Kh1 {[%emt 0:01:30]} O-O {[%emt 0:11:30]} 12. Qe1 {[%emt 0:04:30]} Ne5 {[%emt 0:08:30]} 13. Rd1 {[%emt 0:02:30]} Qc7 {[%emt 0:05:30]} 14. Nd4 {[%emt 0:04:30]} Ng6 {[%emt 0:02:30]} 15. Bg3 {[%emt 0:04:30]} Rfd8 {[%emt 0:04:30]} 16. Nf5 {[%emt 0:03:30]} Bf8 {[%emt 0:01:30]} 17. Qd2 {[%emt 0:04:30]} Ne8 {[%emt 0:11:30]} 18. Nd5 {[%emt 0:05:30]} Qc6 {[%emt 0:03:30]} 19. Nd4 {[%emt 0:07:30]} Qc5 {[%emt 0:05:30]} 20. Nb3 {[%emt 0:01:30]} Qa7 {[%emt 0:01:30]} 21. Bf2 {[%emt 0:00:30]} Qb8 {[%emt 0:00:30]} 22. Nb6 {[%emt 0:00:30]} Ra7 {[%emt 0:01:30]} 23. Qd4 {[%emt 0:01:30]} Qc7 {[%emt 0:04:30]} 24. Bf3 {[%emt 0:03:30]} Qe7 {[%emt 0:06:30]} 25. Nd5 {[%emt 0:07:30]} Bxd5 {[%emt 0:00:30]} 26. Qxa7 {[%emt 0:00:30]} Bxe4 {[%emt 0:00:00]} 27. Rfe1 {[%emt 0:01:30]} f5 {[%emt 0:01:00]} 28. Qd4 {[%emt 0:00:30]} Nf6 {[%emt 0:00:30]} 29. Nd2 {[%emt 0:02:30]} d5 {[%emt 0:01:30]} 30. Nxe4 {[%emt 0:00:30]} fxe4 {[%emt 0:01:30]} 31. Bxe4 {[%emt 0:00:30]} Nxe4 {[%emt 0:00:30]} 32. Rxe4 {[%emt 0:01:30]} Qc7 {[%emt 0:00:30]} 33. Re2 {[%emt 0:01:28]} Kh8 {[%emt 0:01:30]} 34. c4 {[%emt 0:04:15]} Ne7 {[%emt 0:00:30]} 35. Bh4 {[%emt 0:00:43]} Rd7 {[%emt 0:02:30]} 36. Bxe7 {[%emt 0:02:11]} Bxe7 {[%emt 0:00:00]} 37. cxd5 {[%emt 0:00:23]} h6 {[%emt 0:00:00]} 38. Rxe7 {[%emt 0:00:52]} 1-0